fUST/lending_fUST_20260508
["ID","MTS","AMOUNT","RATE_DAILY","PERIOD"]
[421799652,1778175042000,-500.0,0.00010958,2]
[421799705,1778175042000,-500.0,0.00010958,2]
[421799654,1778175042000,-500.0,0.00010958,2]
[421799673,1778175042000,-500.0,0.00010958,2]
[421799589,1778175042000,-500.0,0.00010958,2]
[421799619,1778175042000,-500.0,0.00010958,2]
[421799595,1778175042000,-500.0,0.00010958,2]
[421799623,1778175042000,-500.0,0.00010958,2]
[421799616,1778175042000,-500.0,0.00010958,2]
[421799597,1778175042000,-500.0,0.00010958,2]
[421799603,1778175042000,-500.0,0.00010958,2]
[421799591,1778175042000,-500.0,0.00010958,2]
[421799611,1778175042000,-500.0,0.00010958,2]
[421799605,1778175042000,-613.74796293,0.00010958,2]
[421799609,1778175042000,-500.0,0.00010958,2]
[421799632,1778175042000,-500.0,0.00010958,2]
[421799593,1778175042000,-500.0,0.00010958,2]
[421799601,1778175042000,-500.0,0.00010958,2]
[421799587,1778175042000,-500.0,0.00010958,2]
[421799613,1778175042000,-500.0,0.00010958,2]
[421799608,1778175042000,-396.88701708,0.00010958,2]
[421799666,1778175042000,-636.35984463,0.00010958,2]
[421799644,1778175042000,-500.0,0.00010958,2]
[421799640,1778175042000,-501.4849511,0.00010958,2]
[421799636,1778175042000,-500.0,0.00010958,2]
[421799634,1778175042000,-500.0,0.00010958,2]
[421799642,1778175042000,-500.0,0.00010958,2]
[421799646,1778175042000,-502.65787313,0.00010958,2]
[421799638,1778175042000,-500.0,0.00010958,2]
[421799629,1778175042000,-500.0,0.00010958,2]
[421799625,1778175042000,-453.85476471,0.00010958,2]
[421799599,1778175042000,-500.0,0.00010958,2]
[421799621,1778175042000,-500.0,0.00010958,2]
[421799627,1778175042000,-505.89878333,0.00010958,2]
[421799797,1778175043000,-501.263379,0.00010958,2]
[421799809,1778175043000,-500.0,0.00010958,2]
[421799807,1778175043000,-500.0,0.00010958,2]
[421799801,1778175043000,-611.05,0.00010958,2]
[421799799,1778175043000,-500.0,0.00010958,2]
[421799783,1778175043000,-500.0,0.00010958,2]
[421799793,1778175043000,-500.0,0.00010958,2]
[421799789,1778175043000,-501.61234632,0.00010958,2]
[421799785,1778175043000,-500.0,0.00010958,2]
[421799778,1778175043000,-500.0,0.00010958,2]
[421799787,1778175043000,-500.0,0.00010958,2]
[421799795,1778175043000,-500.6042231,0.00010958,2]
[421799806,1778175043000,-500.0,0.00010958,2]
[421799819,1778175043000,-500.0,0.00010958,2]
[421799803,1778175043000,-500.0,0.00010958,2]
[421799811,1778175043000,-500.0,0.00010958,2]
[421799804,1778175043000,-500.0,0.00010958,2]
[421799815,1778175043000,-500.0,0.00010958,2]
[421799817,1778175043000,-500.0,0.00010958,2]
[421799821,1778175043000,-500.0,0.00010958,2]
[421799824,1778175043000,-500.0,0.00010958,2]
[421799826,1778175043000,-502.91823176,0.00010958,2]
[421799832,1778175043000,-500.0,0.00010958,2]
[421799830,1778175043000,-500.0,0.00010958,2]
[421799828,1778175043000,-500.0,0.00010958,2]
[421799834,1778175043000,-500.57735156,0.00010958,2]
[421799840,1778175043000,-500.52693183,0.00010958,2]
[421799791,1778175043000,-584.69,0.00010958,2]
[421799813,1778175043000,-500.0,0.00010958,2]
[421799780,1778175043000,-500.0,0.00010958,2]
[421799835,1778175043000,-500.0,0.00010958,2]
[421799715,1778175043000,-500.52540294,0.00010958,2]
[421799717,1778175043000,-500.0,0.00010958,2]
[421799719,1778175043000,-505.08232089,0.00010958,2]
[421799721,1778175043000,-500.0,0.00010958,2]
[421799722,1778175043000,-509.27,0.00010958,2]
[421799726,1778175043000,-500.0,0.00010958,2]
[421799724,1778175043000,-500.50983361,0.00010958,2]
[421799730,1778175043000,-500.0,0.00010958,2]
[421799736,1778175043000,-500.0,0.00010958,2]
[421799738,1778175043000,-500.92073582,0.00010958,2]
[421799739,1778175043000,-192.56292164,0.00010958,2]
[421799742,1778175043000,-501.01442716,0.00010958,2]
[421799748,1778175043000,-500.0,0.00010958,2]
[421799732,1778175043000,-500.0,0.00010958,2]
[421799743,1778175043000,-500.0,0.00010958,2]
[421799749,1778175043000,-500.0,0.00010958,2]
[421799728,1778175043000,-500.0,0.00010958,2]
[421799745,1778175043000,-500.0,0.00010958,2]
[421799734,1778175043000,-500.61936989,0.00010958,2]
[421799753,1778175043000,-500.0,0.00010958,2]
[421799755,1778175043000,-513.97,0.00010958,2]
[421799759,1778175043000,-503.49814742,0.00010958,2]
[421799757,1778175043000,-500.0,0.00010958,2]
[421799751,1778175043000,-278.69282646,0.00010958,2]
[421799761,1778175043000,-500.0,0.00010958,2]
[421799765,1778175043000,-613.69,0.00010958,2]
[421799763,1778175043000,-500.0,0.00010958,2]
[421799767,1778175043000,-501.37275543,0.00010958,2]
[421799770,1778175043000,-500.0,0.00010958,2]
[421799772,1778175043000,-500.0,0.00010958,2]
[421799774,1778175043000,-500.0,0.00010958,2]
[421799837,1778175043000,-500.44991227,0.00010958,2]
[421799906,1778175043000,-501.97255815,0.00010958,2]
[421799842,1778175043000,-500.0,0.00010958,2]
[421799917,1778175043000,-500.0,0.00010958,2]
[421799925,1778175043000,-500.0,0.00010958,2]
[421799910,1778175043000,-500.0,0.00010958,2]
[421799923,1778175043000,-500.0,0.00010958,2]
[421799912,1778175043000,-500.0,0.00010958,2]
[421799921,1778175043000,-500.0,0.00010958,2]
[421799915,1778175043000,-500.0,0.00010958,2]
[421799929,1778175043000,-500.0,0.00010958,2]
[421799927,1778175043000,-500.0,0.00010958,2]
[421799931,1778175043000,-500.0,0.00010958,2]
[421799933,1778175043000,-500.0,0.00010958,2]
[421799937,1778175043000,-500.0,0.00010958,2]
[421799945,1778175043000,-972.15,0.00010958,2]
[421799919,1778175043000,-500.0,0.00010958,2]
[421799939,1778175043000,-500.0,0.00010958,2]
[421799941,1778175043000,-500.0,0.00010958,2]
[421799956,1778175043000,-500.0,0.00010958,2]
[421799951,1778175043000,-500.0,0.00010958,2]
[421799954,1778175043000,-500.0,0.00010958,2]
[421799949,1778175043000,-500.0,0.00010958,2]
[421799947,1778175043000,-500.0,0.00010958,2]
[421799958,1778175043000,-500.0,0.00010958,2]
[421799964,1778175043000,-469.38799153,0.00010958,2]
[421799962,1778175043000,-528.74598469,0.00010958,2]
[421799966,1778175043000,-400.68543587,0.00010958,2]
[421799968,1778175043000,-500.0,0.00010958,2]
[421799960,1778175043000,-500.0,0.00010958,2]
[421799843,1778175043000,-363.89955243,0.00010958,2]
[421799944,1778175043000,-500.0,0.00010958,2]
[421799908,1778175043000,-501.37199104,0.00010958,2]
[421799935,1778175043000,-500.0,0.00010958,2]
[421799902,1778175043000,-397.1437777,0.00010958,2]
[421799904,1778175043000,-500.0,0.00010958,2]
[421799847,1778175043000,-638.33,0.00010958,2]
[421799852,1778175043000,-520.35845766,0.00010958,2]
[421799854,1778175043000,-500.68214206,0.00010958,2]
[421799850,1778175043000,-501.98934157,0.00010958,2]
[421799855,1778175043000,-500.0,0.00010958,2]
[421799857,1778175043000,-500.0,0.00010958,2]
[421799859,1778175043000,-500.0,0.00010958,2]
[421799863,1778175043000,-500.0,0.00010958,2]
[421799867,1778175043000,-500.42907656,0.00010958,2]
[421799873,1778175043000,-3775.55,0.00010958,2]
[421799869,1778175043000,-502.47859977,0.00010958,2]
[421799871,1778175043000,-500.0,0.00010958,2]
[421799862,1778175043000,-500.0,0.00010958,2]
[421799845,1778175043000,-500.0,0.00010958,2]
[421799876,1778175043000,-500.0,0.00010958,2]
[421799865,1778175043000,-500.0,0.00010958,2]
[421799900,1778175043000,-500.2445865,0.00010958,2]
[421799889,1778175043000,-500.0,0.00010958,2]
[421799898,1778175043000,-500.0,0.00010958,2]
[421799882,1778175043000,-500.0,0.00010958,2]
[421799894,1778175043000,-500.43936167,0.00010958,2]
[421799887,1778175043000,-500.0,0.00010958,2]
[421799885,1778175043000,-500.0,0.00010958,2]
[421799896,1778175043000,-694.62,0.00010958,2]
[421799878,1778175043000,-500.0,0.00010958,2]
[421799874,1778175043000,-500.0,0.00010958,2]
[421799891,1778175043000,-500.0,0.00010958,2]
[421799893,1778175043000,-501.41537267,0.00010958,2]
[421799881,1778175043000,-500.0,0.00010958,2]
[421800036,1778175044000,-500.0,0.00010958,2]
[421800017,1778175044000,-500.0,0.00010958,2]
[421800022,1778175044000,-500.0,0.00010958,2]
[421800021,1778175044000,-1640.62,0.00010958,2]
[421800026,1778175044000,-692.36,0.00010958,2]
[421800032,1778175044000,-500.0,0.00010958,2]
[421800038,1778175044000,-501.00441149,0.00010958,2]
[421800035,1778175044000,-501.43,0.00010958,2]
[421800037,1778175044000,-500.0,0.00010958,2]
[421800034,1778175044000,-500.0,0.00010958,2]
[421800033,1778175044000,-500.0,0.00010958,2]
[421800043,1778175044000,-500.0,0.00010958,2]
[421800031,1778175044000,-500.0,0.00010958,2]
[421800030,1778175044000,-500.0,0.00010958,2]
[421800028,1778175044000,-500.0,0.00010958,2]
[421800040,1778175044000,-500.0,0.00010958,2]
[421800050,1778175044000,-557.5788265,0.00011226,2]
[421800016,1778175044000,-500.0,0.00010958,2]
[421800051,1778175044000,-155.0,0.00011231,2]
[421800041,1778175044000,-500.0,0.00010958,2]
[421800042,1778175044000,-500.0,0.00010958,2]
[421800039,1778175044000,-500.0,0.00010958,2]
[421800044,1778175044000,-293.28676338,0.00010958,2]
[421800045,1778175044000,-151.0,0.00011096,2]
[421800027,1778175044000,-500.0,0.00010958,2]
[421800023,1778175044000,-500.0,0.00010958,2]
[421800010,1778175044000,-500.0,0.00010958,2]
[421800025,1778175044000,-500.0,0.00010958,2]
[421799979,1778175044000,-500.0,0.00010958,2]
[421799970,1778175044000,-2716.19,0.00010958,2]
[421799982,1778175044000,-500.74420134,0.00010958,2]
[421799975,1778175044000,-500.0,0.00010958,2]
[421799972,1778175044000,-502.23301362,0.00010958,2]
[421799977,1778175044000,-500.0,0.00010958,2]
[421799984,1778175044000,-500.0,0.00010958,2]
[421799974,1778175044000,-500.0,0.00010958,2]
[421799986,1778175044000,-500.0,0.00010958,2]
[421799990,1778175044000,-500.0,0.00010958,2]
[421799988,1778175044000,-500.0,0.00010958,2]
[421799992,1778175044000,-500.0,0.00010958,2]
[421799994,1778175044000,-500.0,0.00010958,2]
[421799996,1778175044000,-500.0,0.00010958,2]
[421800004,1778175044000,-500.0,0.00010958,2]
[421800002,1778175044000,-500.0,0.00010958,2]
[421800006,1778175044000,-500.0,0.00010958,2]
[421799998,1778175044000,-500.0,0.00010958,2]
[421800000,1778175044000,-500.0,0.00010958,2]
[421800008,1778175044000,-501.17093887,0.00010958,2]
[421800047,1778175044000,-445.202766,0.00011171,2]
[421800012,1778175044000,-500.0,0.00010958,2]
[421800014,1778175044000,-500.0,0.00010958,2]
[421800024,1778175044000,-500.0,0.00010958,2]
[421800018,1778175044000,-500.0,0.00010958,2]
[421800019,1778175044000,-426.00652116,0.00010958,2]
[421800049,1778175044000,-500.0,0.00011197,2]
[421800020,1778175044000,-863.58,0.00010958,2]
[421800048,1778175044000,-537.6845,0.00011171,2]
[421800081,1778175044000,-443.61,0.00011232,2]
[421800085,1778175044000,-500.0,0.00011232,2]
[421800080,1778175044000,-500.0,0.00011232,2]
[421800091,1778175044000,-500.0,0.00011232,2]
[421800082,1778175044000,-500.0,0.00011232,2]
[421800087,1778175044000,-500.0,0.00011232,2]
[421800089,1778175044000,-500.0,0.00011232,2]
[421800088,1778175044000,-500.0,0.00011232,2]
[421800084,1778175044000,-500.0,0.00011232,2]
[421800090,1778175044000,-500.0,0.00011232,2]
[421800083,1778175044000,-500.0,0.00011232,2]
[421800092,1778175044000,-500.0,0.00011232,2]
[421800086,1778175044000,-500.0,0.00011232,2]
[421800093,1778175044000,-500.0,0.00011232,2]
[421800100,1778175044000,-500.0,0.00011232,2]
[421800098,1778175044000,-500.0,0.00011232,2]
[421800097,1778175044000,-500.0,0.00011232,2]
[421800102,1778175044000,-500.0,0.00011232,2]
[421800096,1778175044000,-510.68,0.00011232,2]
[421800101,1778175044000,-500.0,0.00011232,2]
[421800095,1778175044000,-500.0,0.00011232,2]
[421800103,1778175044000,-500.0,0.00011232,2]
[421800099,1778175044000,-558.35,0.00011232,2]
[421800105,1778175044000,-500.0,0.00011232,2]
[421800104,1778175044000,-581.1507,0.00011232,2]
[421800046,1778175044000,-324.9701617,0.00011096,2]
[421800094,1778175044000,-500.0,0.00011232,2]
[421800077,1778175044000,-500.0,0.00011232,2]
[421800029,1778175044000,-500.0,0.00010958,2]
[421800078,1778175044000,-221.79,0.00011232,2]
[421800075,1778175044000,-3453.1621,0.00011232,2]
[421800054,1778175044000,-159.14672055,0.00011232,2]
[421800053,1778175044000,-500.0,0.00011232,2]
[421800052,1778175044000,-500.0,0.00011232,2]
[421800055,1778175044000,-459.32,0.00011232,2]
[421800057,1778175044000,-500.0,0.00011232,2]
[421800060,1778175044000,-500.5122475,0.00011232,2]
[421800059,1778175044000,-501.09134532,0.00011232,2]
[421800064,1778175044000,-500.0,0.00011232,2]
[421800058,1778175044000,-500.0,0.00011232,2]
[421800056,1778175044000,-438.09,0.00011232,2]
[421800065,1778175044000,-501.51923546,0.00011232,2]
[421800062,1778175044000,-500.94732026,0.00011232,2]
[421800066,1778175044000,-500.0,0.00011232,2]
[421800061,1778175044000,-500.0,0.00011232,2]
[421800063,1778175044000,-513.25481613,0.00011232,2]
[421800079,1778175044000,-500.0,0.00011232,2]
[421800076,1778175044000,-370.81,0.00011232,2]
[421800073,1778175044000,-500.0,0.00011232,2]
[421800068,1778175044000,-168.8,0.00011232,2]
[421800072,1778175044000,-228.27,0.00011232,2]
[421800070,1778175044000,-501.50461327,0.00011232,2]
[421800071,1778175044000,-287.74,0.00011232,2]
[421800069,1778175044000,-500.0,0.00011232,2]
[421800067,1778175044000,-500.0,0.00011232,2]
[421800074,1778175044000,-561.81517108,0.00011232,2]
[421800149,1778175045000,-500.0,0.00011232,2]
[421800152,1778175045000,-500.0,0.00011232,2]
[421800151,1778175045000,-500.0,0.00011232,2]
[421800155,1778175045000,-500.0,0.00011232,2]
[421800153,1778175045000,-500.0,0.00011232,2]
[421800144,1778175045000,-500.0,0.00011232,2]
[421800154,1778175045000,-500.0,0.00011232,2]
[421800146,1778175045000,-249.29,0.00011232,2]
[421800145,1778175045000,-500.0,0.00011232,2]
[421800140,1778175045000,-500.0,0.00011232,2]
[421800150,1778175045000,-500.0,0.00011232,2]
[421800136,1778175045000,-500.0,0.00011232,2]
[421800148,1778175045000,-500.0,0.00011232,2]
[421800147,1778175045000,-500.0,0.00011232,2]
[421800165,1778175045000,-500.0,0.00011232,2]
[421800158,1778175045000,-500.0,0.00011232,2]
[421800169,1778175045000,-500.0,0.00011232,2]
[421800168,1778175045000,-500.0,0.00011232,2]
[421800159,1778175045000,-500.0,0.00011232,2]
[421800170,1778175045000,-500.0,0.00011232,2]
[421800160,1778175045000,-621.70666274,0.00011232,2]
[421800157,1778175045000,-500.0,0.00011232,2]
[421800161,1778175045000,-505.16,0.00011232,2]
[421800163,1778175045000,-500.30069548,0.00011232,2]
[421800167,1778175045000,-500.0,0.00011232,2]
[421800141,1778175045000,-151.0,0.00011232,2]
[421800164,1778175045000,-500.62402843,0.00011232,2]
[421800162,1778175045000,-501.67764688,0.00011232,2]
[421800171,1778175045000,-500.0,0.00011232,2]
[421800115,1778175045000,-420.163174,0.00011232,2]
[421800138,1778175045000,-500.0,0.00011232,2]
[421800123,1778175045000,-500.0,0.00011232,2]
[421800142,1778175045000,-500.0,0.00011232,2]
[421800173,1778175045000,-500.0,0.00011232,2]
[421800113,1778175045000,-253.5,0.00011232,2]
[421800109,1778175045000,-587.18,0.00011232,2]
[421800107,1778175045000,-320.8,0.00011232,2]
[421800110,1778175045000,-429.7558684,0.00011232,2]
[421800106,1778175045000,-5987.147289,0.00011232,2]
[421800114,1778175045000,-5918.002786,0.00011232,2]
[421800112,1778175045000,-500.0,0.00011232,2]
[421800111,1778175045000,-500.0,0.00011232,2]
[421800116,1778175045000,-240.35,0.00011232,2]
[421800120,1778175045000,-500.0,0.00011232,2]
[421800118,1778175045000,-500.0,0.00011232,2]
[421800119,1778175045000,-500.0,0.00011232,2]
[421800121,1778175045000,-500.0,0.00011232,2]
[421800128,1778175045000,-500.0,0.00011232,2]
[421800126,1778175045000,-618.45,0.00011232,2]
[421800125,1778175045000,-500.0,0.00011232,2]
[421800124,1778175045000,-500.0,0.00011232,2]
[421800122,1778175045000,-500.0,0.00011232,2]
[421800117,1778175045000,-366.601511,0.00011232,2]
[421800127,1778175045000,-600.02,0.00011232,2]
[421800129,1778175045000,-644.80914063,0.00011232,2]
[421800131,1778175045000,-500.0,0.00011232,2]
[421800137,1778175045000,-500.0,0.00011232,2]
[421800139,1778175045000,-500.0,0.00011232,2]
[421800135,1778175045000,-500.0,0.00011232,2]
[421800134,1778175045000,-500.0,0.00011232,2]
[421800133,1778175045000,-500.0,0.00011232,2]
[421800132,1778175045000,-500.0,0.00011232,2]
[421800143,1778175045000,-500.0,0.00011232,2]
[421800108,1778175045000,-500.0,0.00011232,2]
[421800156,1778175045000,-541.42,0.00011232,2]
[421800172,1778175045000,-500.0,0.00011232,2]
[421800210,1778175045000,-500.0,0.00011232,2]
[421800213,1778175045000,-3775.55,0.00011232,2]
[421800216,1778175045000,-500.0,0.00011232,2]
[421800220,1778175045000,-500.0,0.00011232,2]
[421800221,1778175045000,-500.0,0.00011232,2]
[421800218,1778175045000,-500.0,0.00011232,2]
[421800226,1778175045000,-500.0,0.00011232,2]
[421800215,1778175045000,-500.0,0.00011232,2]
[421800217,1778175045000,-550.02,0.00011232,2]
[421800219,1778175045000,-500.0,0.00011232,2]
[421800224,1778175045000,-500.0,0.00011232,2]
[421800222,1778175045000,-500.0,0.00011232,2]
[421800223,1778175045000,-694.62,0.00011232,2]
[421800225,1778175045000,-500.0,0.00011232,2]
[421800227,1778175045000,-365.77,0.00011232,2]
[421800231,1778175045000,-500.0,0.00011232,2]
[421800237,1778175045000,-500.0,0.00011232,2]
[421800228,1778175045000,-500.0,0.00011232,2]
[421800234,1778175045000,-468.78,0.00011232,2]
[421800229,1778175045000,-500.0,0.00011232,2]
[421800232,1778175045000,-500.0,0.00011232,2]
[421800230,1778175045000,-500.0,0.00011232,2]
[421800235,1778175045000,-500.0,0.00011232,2]
[421800239,1778175045000,-500.0,0.00011232,2]
[421800238,1778175045000,-972.15,0.00011232,2]
[421800236,1778175045000,-644.87259703,0.00011232,2]
[421800233,1778175045000,-400.0,0.00011232,2]
[421800240,1778175045000,-500.0,0.00011232,2]
[421800174,1778175045000,-300.14,0.00011232,2]
[421800206,1778175045000,-500.0,0.00011232,2]
[421800208,1778175045000,-500.0,0.00011232,2]
[421800175,1778175045000,-500.0,0.00011232,2]
[421800207,1778175045000,-500.0,0.00011232,2]
[421800202,1778175045000,-500.3842997,0.00011232,2]
[421800176,1778175045000,-459.73,0.00011232,2]
[421800178,1778175045000,-500.0,0.00011232,2]
[421800182,1778175045000,-513.97,0.00011232,2]
[421800183,1778175045000,-500.0,0.00011232,2]
[421800180,1778175045000,-502.75793357,0.00011232,2]
[421800179,1778175045000,-516.17,0.00011232,2]
[421800185,1778175045000,-500.0,0.00011232,2]
[421800184,1778175045000,-410.79695983,0.00011232,2]
[421800187,1778175045000,-584.69,0.00011232,2]
[421800197,1778175045000,-611.35190443,0.00011232,2]
[421800198,1778175045000,-500.0,0.00011232,2]
[421800188,1778175045000,-208.19686078,0.00011232,2]
[421800190,1778175045000,-500.0,0.00011232,2]
[421800186,1778175045000,-500.0,0.00011232,2]
[421800181,1778175045000,-500.0,0.00011232,2]
[421800189,1778175045000,-500.0,0.00011232,2]
[421800212,1778175045000,-500.0,0.00011232,2]
[421800209,1778175045000,-500.0,0.00011232,2]
[421800211,1778175045000,-500.0,0.00011232,2]
[421800214,1778175045000,-500.0,0.00011232,2]
[421800191,1778175045000,-500.0,0.00011232,2]
[421800203,1778175045000,-500.0,0.00011232,2]
[421800205,1778175045000,-500.0,0.00011232,2]
[421800200,1778175045000,-161.74,0.00011232,2]
[421800196,1778175045000,-500.0,0.00011232,2]
[421800192,1778175045000,-500.0,0.00011232,2]
[421800195,1778175045000,-500.0,0.00011232,2]
[421800194,1778175045000,-500.0,0.00011232,2]
[421800193,1778175045000,-500.0,0.00011232,2]
[421800204,1778175045000,-500.0,0.00011232,2]
[421800280,1778175046000,-160.0,0.00011312,2]
[421800279,1778175046000,-160.0,0.00011312,2]
[421800278,1778175046000,-160.0,0.00011312,2]
[421800288,1778175046000,-500.0,0.00011506,2]
[421800274,1778175046000,-500.0,0.00011232,2]
[421800287,1778175046000,-155.0,0.00011505,2]
[421800273,1778175046000,-500.0,0.00011232,2]
[421800271,1778175046000,-500.0,0.00011232,2]
[421800283,1778175046000,-621.78829552,0.00011391,2]
[421800266,1778175046000,-692.36,0.00011232,2]
[421800277,1778175046000,-1891.0,0.00011308,2]
[421800282,1778175046000,-599.60298507,0.00011336,2]
[421800301,1778175046000,-162.009,0.00011506,2]
[421800281,1778175046000,-161.57704075,0.00011312,2]
[421800284,1778175046000,-644.79446246,0.00011446,2]
[421800285,1778175046000,-500.0,0.00011471,2]
[421800290,1778175046000,-1891.02106603,0.00011506,2]
[421800292,1778175046000,-3453.1621,0.00011506,2]
[421800300,1778175046000,-500.0,0.00011506,2]
[421800289,1778175046000,-473.228495,0.00011506,2]
[421800291,1778175046000,-500.0,0.00011506,2]
[421800295,1778175046000,-370.49,0.00011506,2]
[421800298,1778175046000,-534.5,0.00011506,2]
[421800294,1778175046000,-2212.10753398,0.00011506,2]
[421800270,1778175046000,-500.0,0.00011232,2]
[421800286,1778175046000,-668.65185757,0.00011501,2]
[421800269,1778175046000,-500.0,0.00011232,2]
[421800252,1778175046000,-500.0,0.00011232,2]
[421800267,1778175046000,-500.0,0.00011232,2]
[421800251,1778175046000,-500.0,0.00011232,2]
[421800241,1778175046000,-500.0,0.00011232,2]
[421800243,1778175046000,-500.0,0.00011232,2]
[421800244,1778175046000,-2716.19,0.00011232,2]
[421800242,1778175046000,-230.67,0.00011232,2]
[421800248,1778175046000,-500.0,0.00011232,2]
[421800247,1778175046000,-500.0,0.00011232,2]
[421800246,1778175046000,-279.90727158,0.00011232,2]
[421800250,1778175046000,-500.0,0.00011232,2]
[421800245,1778175046000,-500.0,0.00011232,2]
[421800249,1778175046000,-500.0,0.00011232,2]
[421800262,1778175046000,-500.0,0.00011232,2]
[421800253,1778175046000,-500.0,0.00011232,2]
[421800264,1778175046000,-270.0,0.00011232,2]
[421800261,1778175046000,-1640.62,0.00011232,2]
[421800296,1778175046000,-500.0,0.00011506,2]
[421800254,1778175046000,-258.97,0.00011232,2]
[421800255,1778175046000,-390.63,0.00011232,2]
[421800257,1778175046000,-564.24,0.00011232,2]
[421800258,1778175046000,-500.0,0.00011232,2]
[421800256,1778175046000,-500.72040256,0.00011232,2]
[421800260,1778175046000,-863.58,0.00011232,2]
[421800259,1778175046000,-310.96,0.00011232,2]
[421800265,1778175046000,-500.0,0.00011232,2]
[421800275,1778175046000,-578.20924308,0.00011281,2]
[421800268,1778175046000,-500.0,0.00011232,2]
[421800276,1778175046000,-242.042,0.00011281,2]
[421800272,1778175046000,-500.0,0.00011232,2]
[421800263,1778175046000,-502.25683462,0.00011232,2]
[421800299,1778175046000,-500.0,0.00011506,2]
[421800293,1778175046000,-553.58046396,0.00011506,2]
[421800302,1778175046000,-500.0,0.00011506,2]
[421800334,1778175046000,-513.97,0.00011506,2]
[421800332,1778175046000,-500.0,0.00011506,2]
[421800338,1778175046000,-255.22,0.00011506,2]
[421800348,1778175046000,-500.0,0.00011506,2]
[421800339,1778175046000,-2930.57520265,0.00011506,2]
[421800340,1778175046000,-500.0,0.00011506,2]
[421800347,1778175046000,-3775.55,0.00011506,2]
[421800337,1778175046000,-584.69,0.00011506,2]
[421800343,1778175046000,-3988.83847027,0.00011506,2]
[421800342,1778175046000,-500.0,0.00011506,2]
[421800341,1778175046000,-178.76,0.00011506,2]
[421800346,1778175046000,-277.47,0.00011506,2]
[421800345,1778175046000,-500.0,0.00011506,2]
[421800344,1778175046000,-386.54,0.00011506,2]
[421800350,1778175046000,-694.62,0.00011506,2]
[421800360,1778175046000,-2716.19,0.00011506,2]
[421800361,1778175046000,-500.0,0.00011506,2]
[421800349,1778175046000,-395.66,0.00011506,2]
[421800353,1778175046000,-500.0,0.00011506,2]
[421800351,1778175046000,-348.4,0.00011506,2]
[421800352,1778175046000,-500.0,0.00011506,2]
[421800357,1778175046000,-972.15,0.00011506,2]
[421800354,1778175046000,-500.0,0.00011506,2]
[421800356,1778175046000,-500.0,0.00011506,2]
[421800297,1778175046000,-182.56,0.00011506,2]
[421800355,1778175046000,-500.0,0.00011506,2]
[421800358,1778175046000,-500.0,0.00011506,2]
[421800336,1778175046000,-500.0,0.00011506,2]
[421800330,1778175046000,-500.0,0.00011506,2]
[421800359,1778175046000,-500.0,0.00011506,2]
[421800333,1778175046000,-500.0,0.00011506,2]
[421800331,1778175046000,-500.0,0.00011506,2]
[421800303,1778175046000,-500.0,0.00011506,2]
[421800313,1778175046000,-518.33,0.00011506,2]
[421800304,1778175046000,-407.0243337,0.00011506,2]